{"text_format":"1","workbook":"xlsx","n_sheets":1,"sheets":["Gradient"],"not_rendered":{"charts":0,"images":0,"macros":1,"external_links":0,"defined_names":2,"comments":0,"pivot_tables":0},"unopened":[],"bounds":{"document_bytes":16777216,"sheet_cells":100000,"rows_first":2000,"rows_last":500,"rows_between":2000,"halvings":0,"cell_chars":16384,"cell_head_chars":4096},"cells_cut":0,"cells_raw":0,"read":"whole","date_system":"1900"}

{"sheet":"Gradient","index":0,"n_rows":33,"n_cols":55,"rows_kept":33,"cut":false,"hidden":false,"merged":[[32,32,32,34],[29,28,29,32],[29,38,30,40],[30,19,30,21],[19,26,19,29],[18,35,18,39],[21,13,21,14],[21,16,21,18],[1,1,4,42],[21,33,21,35],[7,24,7,25],[17,29,17,31],[11,32,11,34],[8,38,8,40],[9,13,9,14],[7,28,7,31],[9,16,9,18]]}
[]
[null,"N5 Lifeskills - Gradient                                                                                                                                                                   Created by Mr.Lafferty@mathsrevision.com                                                                                                                                                          "]
[]
[]
[null,null,null,null,null,null,null,null,null,null,null,null,null,null,null,null,null,null,null,null,null,null,null,null,null,null,null,null,null,null,null,null,null,null,null,null,null,null,null,null,null,null,null,null,null,null,null,null,null,null,null,{"$f":"ROUND(RAND()*(20-1)+1,0)","v":18},{"$f":"ROUND(RAND()*(1-0)+0,0)","v":1}]
[null,null,null,null,null,null,null,null,null,null,null,null,null,null,null,null,null,null,null,null,null,null,null,null,null,null,null,null,null,null,null,null,null,null,null,null,null,null,null,null,null,null,null,null,null,null,null,null,null,null,{"$f":"ROUND(RAND()*(10-1)+1,0)","v":3},{"$f":"$AZ$5*AY6","v":54},{"$f":"IF(BA5=1,AZ6,\"\")","v":54},{"$f":"CONCATENATE(BA6,\"cm\")","v":"54cm"},{"$f":"IF(BA5=1,BB6,\"\")","v":"54cm"}]
[null,{"$f":"\"Q1.  Find the gradient of the slope to 2 decimal places.\"","v":"Q1.  Find the gradient of the slope to 2 decimal places."},null,null,null,null,null,null,null,null,null,null,null,null,null,null,null,null,null,null,null,null,null,null,null,null,null,null,null,null,null,null,null,null,null,null,null,null,null,null,null,null,null,null,null,null,null,null,null,null,{"$f":"ROUND(RAND()*(25-14)+14,0)","v":16},{"$f":"$AZ$5*AY7","v":288},{"$f":"IF(BA5=0,AZ7,\"\")","v":""},{"$f":"CONCATENATE(BA7,\"cm\")","v":"cm"},{"$f":"IF(BA5=0,BB7,\"\")","v":""}]
[null,null,null,null,null,null,null,null,null,null,null,null,null,null,null,null,null,null,null,null,null,null,null,null,null,null,null,null,{"$f":"BC8","v":"293.04cm"},null,null,null,null,null,null,null,null,null,null,null,null,null,null,null,null,null,null,null,null,null,{"$f":"ROUND(SQRT((AY6*AY6+AY7*AY7)),2)","v":16.28},293.04000000000002,{"$f":"AZ8","v":293.04000000000002},"293.04cm",{"$f":"BB8","v":"293.04cm"}]
[null,null,null,null,null,null,null,null,null,null,null,null,null,null,null,null,null,null,null,null,null,null,null,null,null,null,null,null,null,null,null,null,null,null,null,null,null,null,{"$f":"BC6","v":"54cm"}]
[null,null,null,null,null,null,null,null,null,null,null,null,null,"m",null,"=",null,null,null,null,null,null,null,null,null,null,null,null,null,null,null,null,null,null,null,null,null,null,null,null,null,null,null,null,null,null,null,null,null,null,null,{"$f":"ROUND(AZ6/AZ7,2)","v":0.19}]
[]
[null,null,null,null,null,null,null,null,null,null,null,null,null,null,null,null,null,null,null,null,null,null,null,null,null,null,null,null,null,null,null,null,{"$f":"BC7","v":""}]
[]
[]
[]
[]
[null,null,null,null,null,null,null,null,null,null,null,null,null,null,null,null,null,null,null,null,null,null,null,null,null,null,null,null,null,null,null,null,null,null,null,null,null,null,null,null,null,null,null,null,null,null,null,null,null,null,null,{"$f":"ROUND(RAND()*(20-1)+1,0)","v":15},{"$f":"ROUND(RAND()*(1-0)+0,0)","v":0}]
[null,{"$f":"\"Q2.  Find the gradient of the slope correct to 2 decimal places.\"","v":"Q2.  Find the gradient of the slope correct to 2 decimal places."},null,null,null,null,null,null,null,null,null,null,null,null,null,null,null,null,null,null,null,null,null,null,null,null,null,null,null,null,null,null,null,null,null,null,null,null,null,null,null,null,null,null,null,null,null,null,null,null,{"$f":"ROUND(RAND()*(10-1)+1,0)","v":6},{"$f":"$AZ$17*AY18","v":90},{"$f":"IF(BA17=1,AZ18,\"\")","v":""},{"$f":"CONCATENATE(BA18,\"cm\")","v":"cm"},{"$f":"IF(BA17=1,BB18,\"\")","v":""}]
[null,null,null,null,null,null,null,null,null,null,null,null,null,null,null,null,null,null,null,null,null,null,null,null,null,null,null,null,null,null,null,null,null,null,null,{"$f":"BC20","v":"356.55cm"},null,null,null,null,null,null,null,null,null,null,null,null,null,null,{"$f":"ROUND(RAND()*(25-14)+14,0)","v":23},{"$f":"$AZ$17*AY19","v":345},{"$f":"IF(BA17=0,AZ19,\"\")","v":345},{"$f":"CONCATENATE(BA19,\"cm\")","v":"345cm"},{"$f":"IF(BA17=0,BB19,\"\")","v":"345cm"}]
[null,null,null,null,null,null,null,null,null,null,null,null,null,null,null,null,null,null,null,null,null,null,null,null,null,null,{"$f":"BC18","v":""},null,null,null,null,null,null,null,null,null,null,null,null,null,null,null,null,null,null,null,null,null,null,null,{"$f":"ROUND(SQRT((AY18*AY18+AY19*AY19)),2)","v":23.77},356.55,{"$f":"AZ20","v":356.55},"356.55cm",{"$f":"BB20","v":"356.55cm"}]
[]
[null,null,null,null,null,null,null,null,null,null,null,null,null,"m",null,"=",null,null,null,null,null,null,null,null,null,null,null,null,null,null,null,null,null,{"$f":"BC19","v":"345cm"},null,null,null,null,null,null,null,null,null,null,null,null,null,null,null,null,null,{"$f":"ROUND(-AZ18/AZ19,2)","v":-0.26}]
[]
[]
[]
[null,null,null,null,null,null,null,null,null,null,null,null,null,null,null,null,null,null,null,null,null,null,null,null,null,null,null,null,null,null,null,null,null,null,null,null,null,null,null,null,null,null,null,null,null,null,null,null,null,null,null,null,{"$f":"ROUND(RAND()*(1-0)+0,0)","v":0}]
[null,null,null,null,null,null,null,null,null,null,null,null,null,null,null,null,null,null,null,null,null,null,null,null,null,null,null,null,null,null,null,null,null,null,null,null,null,null,null,null,null,null,null,null,null,null,null,null,null,null,{"$f":"ROUND(RAND()*(1.5-0.1)+0.1,1)*100","v":60},null,{"$f":"IF(BA26=1,AY27,\"\")","v":""},{"$f":"CONCATENATE(AY27,\"cm\")","v":"60cm"},{"$f":"IF(BA26=1,BB27,\"\")","v":""}]
[null,{"$f":"\"Q3.  To comply with Health & Safety, a ramp for wheelchair access to a supermarket\"","v":"Q3.  To comply with Health & Safety, a ramp for wheelchair access to a supermarket"},null,null,null,null,null,null,null,null,null,null,null,null,null,null,null,null,null,null,null,null,null,null,null,null,null,null,null,null,null,null,null,null,null,null,null,null,null,null,null,null,null,null,null,null,null,null,null,null,{"$f":"ROUND(RAND()*(9-1.5)+1.5,0)*100","v":400},null,{"$f":"IF(BA27=1,AY28,\"\")","v":""},{"$f":"CONCATENATE(AY28,\"cm\")","v":"400cm"},{"$f":"IF(BA26=0,BB28,\"\")","v":"400cm"}]
[null,null,null,{"$f":"\"must have a gradient less than \"&AZ30","v":"must have a gradient less than 0.13"},null,null,null,null,null,null,null,null,null,null,null,null,null,null,null,null,null,null,null,null,null,null,null,null,null,null,null,null,null,null,null,null,null,null,null,null,null,null,null,null,null,null,null,null,null,null,{"$f":"ROUND(SQRT((AY27*AY27+AY28*AY28)),2)","v":404.47},null,{"$f":"AY29","v":404.47},{"$f":"CONCATENATE(BA29,\"cm\")","v":"404.47cm"},{"$f":"BB29","v":"404.47cm"}]
[null,null,null,null,null,null,null,null,null,null,null,null,null,null,null,null,null,null,null,null,null,null,null,null,null,null,null,null,{"$f":"BB29","v":"404.47cm"},null,null,null,null,null,null,null,null,null,{"$f":"BC27","v":""},null,null,null,null,null,null,null,null,null,null,null,{"$f":"ROUND(RAND()*(1-0)+0,0)","v":0},{"$f":"IF(AY30=1,AZ31+0.02,AZ31-0.02)","v":0.13}]
[null,null,null,"Does this ramp comply with regulations ?",null,null,null,null,null,null,null,null,null,null,null,null,null,null,null,null,null,null,null,null,null,null,null,null,null,null,null,null,null,null,null,null,null,null,null,null,null,null,null,null,null,null,null,null,null,null,null,{"$f":"ROUND(AY27/AY28,2)","v":0.15}]
[null,null,null,null,null,null,null,null,null,null,null,null,null,null,null,null,null,null,null,null,null,null,null,null,null,null,null,null,null,null,null,null,null,null,null,null,null,null,null,null,null,null,null,null,null,null,null,null,null,null,null,{"$f":"IF(AZ31>AZ30,\"No\",\"Yes\")","v":"No"}]
[null,null,null,null,null,null,null,null,null,null,null,null,null,null,null,null,null,null,null,null,null,null,null,null,null,null,null,null,null,null,null,null,{"$f":"BC28","v":"400cm"}]